bitfinex-derivatives/quotes_SOLF0:USTF0_20220106
["timestamp","ask_amount","ask_price","bid_price","bid_amount"]
[1641440709056,3.41145335,150.29,150.22,27.66479]
[1641440709457,3.41145335,150.29,150.27,4.69979708]
[1641440710257,3.41145335,150.3,150.28,4.69979708]
[1641440711258,27.66479,150.34,150.28,8.69979708]
[1641440711659,27.66479,150.34,150.3,6.64341472]
[1641440711859,27.66479,150.34,150.29,4.0]
[1641440712058,27.66479,150.34,150.28,6.64429753]
[1641440712059,27.66479,150.34,150.28,10.64429753]
[1641440712258,27.66479,150.34,150.29,4.0]
[1641440712659,27.66479,150.34,150.28,10.64429753]
[1641440714863,27.66479,150.34,150.31,14.09132378]
[1641440716465,37.44287054,150.41,150.31,14.09132378]
[1641440716766,37.44287054,150.41,150.31,18.09132378]
[1641440716967,37.44287054,150.41,150.32,6.64275276]
[1641440717165,37.44287054,150.41,150.38,27.66479]
[1641440717366,12.21961815,150.41,150.38,27.66479]
[1641440718366,12.21961815,150.41,150.38,31.66479]
[1641440718567,12.21961815,150.41,150.38,27.66479]
[1641440719168,37.44287054,150.45,150.39,4.69698855]
[1641440720070,37.44287054,150.45,150.4,4.69698855]
[1641440720271,12.21961815,150.46,150.4,4.69698855]
[1641440721271,37.44287054,150.47,150.41,27.66479]
[1641440722272,37.44287054,150.48,150.41,32.36177855]
[1641440722473,37.44287054,150.48,150.41,36.36177855]
[1641440722873,37.44287054,150.48,150.43,6.63790242]
[1641440723077,37.44287054,150.48,150.41,43.00056232]
[1641440723375,37.44287054,150.48,150.44,27.66479]
[1641440723988,37.44287054,150.51,150.44,32.36177855]
[1641440724376,37.44287054,150.51,150.44,36.36177855]
[1641440724574,37.44287054,150.51,150.44,32.36177855]
[1641440725375,49.66248869,150.54,150.47,4.69698855]
[1641440726576,37.44287054,150.53,150.46,4.69698855]
[1641440726978,37.44287054,150.53,150.46,15.33334917]
[1641440727178,37.44287054,150.53,150.46,11.33334917]
[1641440727377,37.44287054,150.53,150.49,27.66479]
[1641440728477,37.44287054,150.53,150.49,33.82479]
[1641440728678,37.44287054,150.54,150.49,33.82479]
[1641440729477,37.44287054,150.53,150.49,33.82479]
[1641440729678,4.0,150.52,150.49,27.66479]
[1641440730081,37.44287054,150.53,150.49,27.66479]
[1641440730477,37.44287054,150.51,150.49,27.66479]
[1641440731777,37.44287054,150.54,150.49,27.66479]
[1641440732478,49.66248869,150.54,150.49,27.66479]
[1641440732679,37.44287054,150.53,150.49,27.66479]
[1641440733279,41.44287054,150.53,150.46,4.69698855]
[1641440733482,4.0,150.51,150.46,4.69698855]
[1641440733985,37.44287054,150.53,150.46,4.69698855]
[1641440734182,4.0,150.51,150.46,4.69698855]
[1641440734382,4.0,150.5,150.46,4.69698855]
[1641440734585,37.44287054,150.48,150.42,4.69698855]
[1641440736183,37.44287054,150.48,150.41,4.69698855]
[1641440737184,61.13629969,150.51,150.4,32.36177855]
[1641440737185,37.44287054,150.47,150.4,32.36177855]
[1641440738686,37.44287054,150.47,150.4,4.69698855]
[1641440739288,37.44287054,150.47,150.41,27.66479]
[1641440739887,37.44287054,150.49,150.42,4.69698855]
[1641440740087,41.44287054,150.49,150.42,4.69698855]
[1641440740989,4.0,150.48,150.42,4.69698855]
[1641440741389,41.44287054,150.49,150.42,4.69698855]
[1641440741587,37.44287054,150.48,150.41,32.36177855]
[1641440742889,37.44287054,150.48,150.41,39.00056232]
[1641440743491,37.44287054,150.48,150.41,66.66535232]
[1641440743691,4.69409853,150.45,150.44,4.69698855]
[1641440744592,49.66248869,150.51,150.44,4.69698855]
[1641440745493,49.66248869,150.51,150.46,27.66479]
[1641440745895,12.21961815,150.51,150.46,27.66479]
[1641440746994,49.66248869,150.51,150.46,27.66479]
[1641440747194,49.66248869,150.51,150.46,20.15422753]
[1641440747396,49.66248869,150.51,150.46,26.50622753]
[1641440747596,49.66248869,150.51,150.46,54.17101753]
[1641440749896,49.66248869,150.51,150.46,58.17101753]
[1641440750197,49.66248869,150.51,150.46,58.86511063]
[1641440750399,12.21961815,150.51,150.46,58.86511063]
[1641440751396,12.21961815,150.54,150.48,4.6940931]
[1641440752600,15.62293032,150.54,150.48,4.6940931]
[1641440753496,15.62293032,150.54,150.49,27.66479]
[1641440755100,15.62293032,150.54,150.49,31.66479]
[1641440755501,15.62293032,150.54,150.49,36.3588831]
[1641440756100,15.62293032,150.54,150.49,4.6940931]
[1641440756301,4.0,150.52,150.49,4.6940931]
[1641440756501,15.62293032,150.54,150.48,4.6940931]
[1641440757300,37.44287054,150.53,150.46,5.9841541]
[1641440758499,53.06580086,150.53,150.46,5.9841541]
[1641440760304,37.44287054,150.53,150.46,5.9841541]
[1641440760705,4.0,150.52,150.46,5.9841541]
[1641440760904,4.0,150.5,150.46,5.9841541]
[1641440761105,4.0,150.49,150.46,5.9841541]
[1641440761305,4.0,150.49,150.45,4.6940931]
[1641440761507,4.0,150.46,150.45,4.6940931]
[1641440761707,4.0,150.46,150.41,14.09132378]
[1641440761906,68.0222,150.5,150.41,14.09132378]
[1641440762406,4.0,150.49,150.41,14.09132378]
[1641440762808,3.40331217,150.45,150.4,1.28943719]
[1641440764608,37.44287054,150.48,150.4,1.28943719]
[1641440767411,19.62293032,150.49,150.4,1.28943719]
[1641440768213,3.40331217,150.48,150.4,1.28943719]
[1641440768911,3.40331217,150.48,150.4,7.92866173]
[1641440769314,53.06580086,150.49,150.4,11.92866173]
[1641440769514,53.06580086,150.49,150.4,7.92866173]
[1641440770314,4.0,150.48,150.41,1.28943719]
[1641440770613,15.62293032,150.49,150.41,1.28943719]
[1641440771512,3.40331217,150.47,150.41,1.28943719]
[1641440772414,53.06580086,150.49,150.4,1.28943719]
[1641440772714,53.06580086,150.49,150.4,5.50643719]
[1641440773616,15.62293032,150.49,150.4,5.50643719]
[1641440774315,15.62293032,150.49,150.41,1.28943719]
[1641440775019,4.0,150.45,150.41,1.28943719]
[1641440775219,4.0,150.43,150.41,1.28943719]
[1641440775619,15.62293032,150.49,150.41,1.28943719]
[1641440775816,4.0,150.42,150.28,94.30149304]
[1641440776017,4.0,150.38,150.28,100.94579057]
[1641440776218,4.0,150.38,150.29,63.6903]
[1641440776416,4.0,150.37,150.29,63.6903]
[1641440776617,5.523,150.37,150.29,63.6903]
[1641440776818,9.523,150.37,150.29,63.6903]
[1641440777417,4.0,150.34,150.29,63.6903]
[1641440777618,4.0,150.38,150.27,56.32137231]
[1641440778218,4.0,150.39,150.27,83.98616231]
[1641440778620,4.0,150.38,150.27,27.66479]
[1641440778818,68.911,150.39,150.27,27.66479]
[1641440779230,4.0,150.38,150.27,27.66479]
[1641440779522,4.0,150.37,150.27,27.66479]
[1641440780924,4.0,150.38,150.27,27.66479]
[1641440781323,4.0,150.38,150.26,68.534]
[1641440781524,4.0,150.32,150.26,68.534]
[1641440781723,4.0,150.32,150.25,6.6456222]
[1641440782124,4.0,150.31,150.25,6.6456222]
[1641440782325,4.0,150.3,150.2,94.89576596]
[1641440782624,4.0,150.28,150.2,94.89576596]
[1641440782825,4.0,150.29,150.2,94.89576596]
[1641440783527,4.0,150.3,150.2,94.89576596]
[1641440783729,4.0,150.3,150.2,83.98616231]
[1641440783930,4.0,150.3,150.2,27.66479]
[1641440784129,4.0,150.29,150.2,27.66479]
[1641440784532,4.0,150.3,150.2,27.66479]
[1641440784730,4.0,150.29,150.2,27.66479]
[1641440784931,4.0,150.3,150.2,27.66479]
[1641440785736,4.0,150.31,150.2,27.66479]
[1641440785933,94.80749,150.33,150.2,38.55787327]
[1641440786133,27.66479,150.27,150.2,10.89308327]
[1641440786833,27.66479,150.27,150.18,65.4268]
[1641440788536,27.66479,150.27,150.17,34.31394722]
[1641440788736,27.66479,150.27,150.19,10.89412426]
[1641440789138,31.66479,150.27,150.19,10.89412426]
[1641440789437,27.66479,150.27,150.19,10.89412426]
[1641440789637,27.66479,150.27,150.17,34.31394722]
[1641440789638,31.66479,150.27,150.17,34.31394722]
[1641440790240,27.66479,150.27,150.17,34.31394722]
[1641440792138,31.66479,150.27,150.17,34.31394722]
[1641440792339,27.66479,150.27,150.16,10.89412426]
[1641440792539,4.0,150.21,150.16,10.89412426]
[1641440792739,4.0,150.22,150.16,10.89412426]
[1641440792938,4.0,150.23,150.16,10.89412426]
[1641440793140,4.0,150.22,150.16,10.89412426]
[1641440793347,4.0,150.21,150.16,10.89412426]
[1641440793740,62.6851,150.26,150.16,10.89412426]
[1641440793741,4.0,150.2,150.16,10.89412426]
[1641440794041,4.0,150.2,150.13,10.89412426]
[1641440794240,27.66479,150.19,150.13,10.89412426]
[1641440794841,31.66479,150.19,150.13,10.89412426]
[1641440795142,27.66479,150.19,150.13,10.89412426]
[1641440795343,27.66479,150.19,150.12,68.594]
[1641440796643,27.66479,150.19,150.13,6.55519742]
[1641440796841,31.66479,150.19,150.13,6.55519742]
[1641440797542,27.66479,150.19,150.13,6.55519742]
[1641440797942,4.0,150.17,150.13,6.55519742]
[1641440798141,4.0,150.18,150.13,6.55519742]
[1641440798341,31.66479,150.19,150.1,6.55519742]
[1641440798543,4.0,150.17,150.1,6.55519742]
[1641440799346,31.66479,150.19,150.1,6.55519742]
[1641440800348,4.0,150.18,150.1,6.55519742]
[1641440800551,31.66479,150.19,150.1,6.55519742]
[1641440800751,27.66479,150.19,150.1,6.55519742]
[1641440802552,63.7568,150.2,150.1,6.55519742]
[1641440802755,6.65269601,150.26,150.13,4.0]
[1641440802952,64.8711,150.25,150.14,67.2348]
[1641440803752,64.8711,150.25,150.15,6.55519742]
[1641440804353,64.8711,150.25,150.15,34.21998742]
[1641440805854,4.0,150.21,150.15,6.55519742]
[1641440806056,9.884,150.21,150.15,6.55519742]
[1641440806456,31.66479,150.19,150.1,56.32137231]
[1641440807354,31.66479,150.19,150.06,92.90489]
[1641440807355,27.66479,150.19,150.07,10.89328468]
[1641440807555,31.66479,150.19,150.07,10.89328468]
[1641440808157,4.0,150.18,150.07,10.89328468]
[1641440810058,27.66479,150.19,150.07,10.89328468]
[1641440810458,3.60000001,150.17,150.07,11.29328467]
[1641440810669,3.60000001,150.16,150.07,11.29328467]
[1641440811758,3.60000001,150.16,150.07,10.89328468]
[1641440813360,3.60000001,150.15,150.07,10.89328468]
[1641440814460,36.80379001,150.15,150.07,10.89328468]
[1641440815363,3.60000001,150.14,150.07,10.89328468]
[1641440815763,36.80379001,150.15,150.07,10.89328468]
[1641440816564,33.20379,150.15,150.09,0.39999999]
[1641440816763,27.66479,150.15,150.07,12.17814152]
[1641440816963,27.66479,150.19,150.1,0.39999999]
[1641440817364,27.66479,150.19,150.07,12.17814152]
[1641440817563,31.26479001,150.19,150.09,0.39999999]
[1641440817763,27.66479,150.19,150.07,12.17814152]
[1641440817963,27.66479,150.19,150.11,0.39999999]
[1641440818465,27.66479,150.19,150.1,0.39999999]
[1641440818665,3.41905305,150.18,150.12,1.28485684]
[1641440819973,3.41905305,150.18,150.11,1.28485684]
[1641440821470,3.41905305,150.18,150.1,1.28485684]
[1641440821970,3.60000001,150.15,150.1,1.28485684]
[1641440822171,3.60000001,150.16,150.1,1.28485684]
[1641440822570,27.66479,150.16,150.1,1.28485684]
[1641440823170,4.70389633,150.14,150.07,12.57814151]
[1641440823870,4.70389633,150.14,150.08,1.28485684]
[1641440827675,4.70389633,150.14,150.07,18.74077669]
[1641440828374,4.70389633,150.14,150.07,19.14077668]
[1641440828574,3.60000001,150.13,150.07,18.74077669]
[1641440828775,27.66479,150.09,150.07,18.74077669]
[1641440829175,3.60000001,150.12,150.07,18.74077669]
[1641440829376,4.70389633,150.11,150.07,7.84749201]
[1641440830379,3.41905305,150.12,150.07,7.84749201]
[1641440830689,3.41905305,150.11,150.03,7.84749201]
[1641440831479,3.41905305,150.11,150.03,8.247492]
[1641440831980,4.70592266,150.09,150.03,8.247492]
[1641440832980,4.70592266,150.09,150.04,1.28485684]
[1641440837287,4.70592266,150.09,150.05,14.11599107]
[1641440838287,8.30592267,150.09,150.05,14.11599107]
[1641440838488,3.60000001,150.09,150.06,14.11599107]
[1641440838787,4.70592266,150.1,150.06,14.11599107]
[1641440839189,4.70592266,150.07,150.04,14.11599107]
[1641440839387,37.44287054,150.14,150.06,0.39999999]
[1641440839687,37.44287054,150.14,150.05,4.0]
[1641440839886,37.44287054,150.14,150.06,0.39999999]
[1641440840087,37.44287054,150.14,150.05,4.0]
[1641440840287,37.44287054,150.14,150.07,0.39999999]
[1641440840593,92.04159,150.16,150.09,14.11599107]
[1641440840789,27.66479,150.16,150.09,14.11599107]
[1641440841196,3.60000001,150.15,150.09,14.11599107]
[1641440841590,31.26479001,150.16,150.09,14.11599107]
[1641440841790,27.66479,150.16,150.08,14.11599107]
[1641440843394,27.66479,150.16,150.08,14.51599106]
[1641440843595,27.66479,150.16,150.08,14.11599107]
[1641440843793,27.66479,150.16,150.09,14.11599107]
[1641440844794,27.66479,150.16,150.1,14.11599107]
[1641440845798,27.66479,150.16,150.09,14.11599107]
[1641440847001,31.26479001,150.16,150.09,14.11599107]
[1641440847401,27.66479,150.16,150.09,14.11599107]
[1641440847801,33.97079,150.16,150.09,14.11599107]
[1641440848001,37.57079001,150.16,150.09,14.11599107]
[1641440848201,3.60000001,150.12,150.08,14.11599107]
[1641440848403,33.97079,150.16,150.08,14.11599107]
[1641440848603,3.60000001,150.14,150.08,14.11599107]
[1641440848802,3.60000001,150.13,150.08,14.11599107]
[1641440849002,3.60000001,150.12,150.08,14.11599107]
[1641440849204,27.66479,150.09,150.08,9.107e-05]
[1641440849403,31.26479001,150.09,150.06,7.55305907]
[1641440850010,27.66479,150.09,150.06,7.55305907]
[1641440850407,31.26479001,150.09,150.05,6.56263517]
[1641440850608,27.66479,150.09,149.99,0.39999999]
[1641440850807,31.26479001,150.09,149.99,0.39999999]
[1641440851409,27.66479,150.09,149.99,0.39999999]
[1641440851609,31.26479001,150.09,149.99,0.39999999]
[1641440851808,27.66479,150.09,149.99,0.39999999]
[1641440852009,27.66479,150.09,150.01,0.39999999]
[1641440852412,27.66479,150.09,149.98,17.47322859]
[1641440852809,3.60000001,150.08,149.98,17.47322859]
[1641440854215,31.26479001,150.09,149.99,0.39999999]
[1641440854811,27.66479,150.09,149.98,6.56263517]
[1641440855213,27.66479,150.09,149.99,27.66479]
[1641440855512,27.66479,150.09,150.01,0.39999999]
[1641440855713,27.66479,150.09,149.99,27.66479]
[1641440855912,27.66479,150.09,150.0,6.96263516]
[1641440856115,3.60000001,150.08,150.0,6.56263517]
[1641440856314,34.32524025,150.09,150.0,6.56263517]
[1641440856516,3.60000001,150.02,149.98,10.9151102]
[1641440856715,6.66289103,150.03,149.98,10.9151102]
[1641440856914,3.60000001,150.04,149.98,10.9151102]
[1641440857317,27.66479,150.02,149.98,10.9151102]
[1641440857615,27.66479,150.02,149.98,11.31511019]
[1641440858015,37.44287054,150.07,149.98,0.39999999]
[1641440858416,10.26200327,150.05,149.93,27.66479]
[1641440858620,3.60000001,150.04,149.95,0.39999999]
[1641440858819,6.66200326,150.05,149.93,27.66479]
[1641440859119,6.66200326,150.05,149.95,0.39999999]
[1641440859320,27.66479,150.03,149.95,0.39999999]
[1641440860222,3.60000001,150.02,149.93,28.06478999]
[1641440860423,3.60000001,150.02,149.92,10.9151102]
[1641440860625,3.60000001,150.0,149.92,11.31511019]
[1641440860823,31.26479001,150.03,149.92,10.9151102]
[1641440861226,3.60000001,150.01,149.92,10.9151102]
[1641440861424,27.66479,149.96,149.91,0.39999999]
[1641440863526,27.66479,149.96,149.92,0.39999999]
[1641440863727,27.66479,149.98,149.88,6.66200326]
[1641440863927,27.66479,149.98,149.91,0.39999999]
[1641440865928,31.26479001,149.98,149.91,0.39999999]
[1641440866230,3.60000001,149.96,149.91,0.39999999]
[1641440866429,27.66479,149.98,149.91,0.39999999]
[1641440866632,31.26479001,149.98,149.91,0.39999999]
[1641440867432,27.66479,149.94,149.91,0.39999999]
[1641440869036,27.66479,149.98,149.87,10.9121047]
[1641440869233,27.66479,149.98,149.92,0.39999999]
[1641440870533,20.12992018,149.98,149.92,0.39999999]
[1641440871735,20.12992018,149.98,149.91,0.39999999]
[1641440871937,20.12992018,149.98,149.89,27.66479]
[1641440872135,20.12992018,149.98,149.93,0.39999999]
[1641440872335,20.12992018,149.98,149.92,0.39999999]
[1641440876738,20.12992018,149.98,149.9,6.55891866]
[1641440876940,20.12992018,149.98,149.95,0.39999999]
[1641440877138,20.12992018,149.98,149.9,6.55891866]
[1641440877339,100.73327054,150.01,149.94,0.39999999]
[1641440877642,10.26777797,149.95,149.9,6.55891866]
[1641440877839,3.60000001,149.91,149.87,10.9121047]
[1641440878039,3.60000001,149.89,149.85,39.23347701]
[1641440878239,3.60000001,149.91,149.85,39.23347701]
[1641440878441,3.60000001,149.86,149.85,39.23347701]
[1641440878643,3.60000001,149.88,149.79,10.2]
[1641440879242,3.60000001,149.88,149.76,43.23347701]
[1641440879447,27.66479,149.85,149.77,0.39999999]
[1641440879641,27.66479,149.85,149.76,49.07347701]
[1641440879847,27.66479,149.85,149.77,0.39999999]
[1641440880145,27.66479,149.85,149.8,1.28136789]
[1641440881143,3.43229356,149.84,149.82,0.39999999]
[1641440881345,3.43229356,149.84,149.83,0.39999999]
[1641440881547,3.43229356,149.84,149.8,0.39999999]
[1641440881945,27.66479,149.85,149.8,0.39999999]
[1641440882146,27.66479,149.85,149.83,1.28136789]
[1641440883347,31.26479001,149.85,149.83,1.28136789]
[1641440883547,31.26479001,149.85,149.82,14.14098435]
[1641440883846,27.66479,149.85,149.82,14.14098435]
[1641440884246,3.60000001,149.84,149.82,14.14098435]
[1641440884448,3.60000001,149.83,149.82,14.14098435]
[1641440884649,3.60000001,149.84,149.82,14.14098435]
[1641440884849,27.66479,149.87,149.75,6.66777796]
[1641440885048,68.8403,149.89,149.79,0.39999999]
[1641440885347,68.8403,149.89,149.75,6.66777796]
[1641440885548,68.8403,149.89,149.74,64.4202]
[1641440885549,27.66479,149.87,149.78,0.39999999]
[1641440885750,31.26479001,149.87,149.74,64.4202]
[1641440886049,31.26479001,149.87,149.78,0.39999999]
[1641440886250,3.60000001,149.85,149.78,0.39999999]
[1641440886449,3.60000001,149.84,149.78,0.39999999]
[1641440886951,3.60000001,149.84,149.74,64.4202]
[1641440887349,3.60000001,149.83,149.74,64.82019999]
[1641440887551,31.26479001,149.81,149.72,0.39999999]
[1641440887750,31.26479001,149.81,149.69,68.4844]
[1641440888150,31.26479001,149.81,149.71,0.39999999]
[1641440888351,31.26479001,149.81,149.69,68.4844]
[1641440888352,3.60000001,149.8,149.69,68.4844]
[1641440888753,3.60000001,149.8,149.69,68.88439999]
[1641440888951,3.60000001,149.79,149.69,0.39999999]
[1641440889152,3.60000001,149.77,149.63,24.30098435]
[1641440889350,6.67579025,149.74,149.64,0.39999999]
[1641440889555,27.66479,149.68,149.64,0.39999999]
[1641440889751,33.19779,149.68,149.64,0.39999999]
[1641440890153,33.19779,149.68,149.63,14.14098435]
[1641440890553,33.19779,149.68,149.62,0.39999999]
[1641440890754,39.87647831,149.68,149.62,0.39999999]
[1641440890953,6.67980361,149.65,149.56,14.14098435]
[1641440891153,6.67980361,149.65,149.51,10.04]
[1641440891353,6.68270516,149.59,149.53,0.39999999]
[1641440891553,55.32958,149.54,149.52,0.39999999]
[1641440891753,55.32958,149.54,149.5,10.18]
[1641440892452,55.32958,149.54,149.45,13.89454849]
[1641440892655,55.32958,149.54,149.46,0.39999999]
[1641440892854,55.32958,149.54,149.45,14.29454848]
[1641440893454,3.60000001,149.51,149.43,34.3470486]
[1641440893661,55.32958,149.54,149.43,34.3470486]
[1641440893854,55.32958,149.54,149.43,27.66479]
[1641440894356,6.68695042,149.49,149.36,4.65999999]
[1641440894553,12.33895042,149.49,149.41,4.0]
[1641440894758,5.652,149.49,149.48,0.39999999]
[1641440894955,5.652,149.49,149.41,0.39999999]
[1641440895158,5.652,149.49,149.4,0.39999999]
[1641440895354,6.68762121,149.48,149.35,4.0]
[1641440895555,27.66479,149.48,149.4,0.39999999]
[1641440895757,27.66479,149.48,149.38,0.39999999]
[1641440895960,27.66479,149.48,149.38,4.0]
[1641440896158,27.66479,149.48,149.35,34.35039923]
[1641440896159,27.66479,149.48,149.35,27.66479]
[1641440896757,27.66479,149.48,149.39,0.39999999]
[1641440896959,27.66479,149.48,149.43,0.39999999]
[1641440897361,27.66479,149.48,149.42,0.39999999]
[1641440897561,27.66479,149.48,149.36,0.39999999]
[1641440897761,27.66479,149.48,149.37,0.39999999]
[1641440897959,3.60000001,149.47,149.37,0.39999999]
[1641440898162,3.60000001,149.45,149.37,0.39999999]
[1641440898459,3.60000001,149.44,149.39,0.39999999]
[1641440898660,3.60000001,149.44,149.36,0.39999999]
[1641440899059,27.66479,149.48,149.43,0.39999999]
[1641440899459,27.66479,149.51,149.42,27.66479]
[1641440899661,27.66479,149.51,149.47,0.39999999]
[1641440899862,27.66479,149.51,149.42,31.66479]
[1641440899863,27.66479,149.51,149.42,27.66479]
[1641440900061,27.66479,149.51,149.42,0.39999999]
[1641440900462,27.66479,149.51,149.37,6.6847154]
[1641440900663,6.68650329,149.5,149.4,0.39999999]
[1641440901063,27.66479,149.51,149.36,10.68538575]
[1641440901262,27.66479,149.51,149.41,0.39999999]
[1641440901562,27.66479,149.51,149.36,10.68538575]
[1641440901563,27.66479,149.48,149.37,28.06478999]
[1641440901763,27.66479,149.48,149.39,0.39999999]
[1641440901963,27.66479,149.48,149.37,27.66479]
[1641440902165,3.60000001,149.47,149.38,0.39999999]
[1641440902366,3.60000001,149.46,149.34,0.08]
[1641440902565,3.60000001,149.46,149.36,0.39999999]
[1641440902762,27.66479,149.48,149.34,0.08]
[1641440902964,3.60000001,149.45,149.35,0.39999999]
[1641440903364,3.60000001,149.41,149.34,0.08]
[1641440903565,27.66479,149.39,149.34,0.08]
[1641440904165,3.60000001,149.38,149.34,0.08]
[1641440904470,27.66479,149.39,149.27,27.66479]
[1641440904666,6.69299244,149.36,149.27,27.66479]
[1641440905266,10.29299245,149.36,149.27,27.66479]
[1641440905470,34.35890253,149.33,149.27,27.66479]
[1641440905667,3.60000001,149.31,149.22,28.06478999]
[1641440905870,34.35890253,149.33,149.22,27.66479]
[1641440906066,37.95890254,149.33,149.22,27.66479]
[1641440906268,3.60000001,149.31,149.22,27.66479]
[1641440906466,3.60000001,149.3,149.22,0.39999999]
[1641440906667,3.60000001,149.31,149.22,0.39999999]
[1641440906867,3.60000001,149.3,149.2,0.39999999]
[1641440907265,3.60000001,149.28,149.2,0.39999999]
[1641440907468,6.69590545,149.29,149.2,0.39999999]
[1641440907667,3.60000001,149.25,149.19,28.06478999]
[1641440907868,27.66479,149.27,149.19,0.39999999]
[1641440908067,27.66479,149.27,149.17,27.66479]
[1641440908470,31.26479001,149.27,149.18,0.39999999]
[1641440908670,3.60000001,149.26,149.17,27.66479]
[1641440908869,10.29747506,149.26,149.17,27.66479]
[1641440909569,31.26479001,149.23,149.17,27.66479]
[1641440909773,37.96361102,149.23,149.16,0.39999999]
[1641440909977,37.96361102,149.23,149.09,4.0]
[1641440909978,6.7001675,149.2,149.09,4.0]
[1641440910173,6.7001675,149.2,149.03,72.3417675]
[1641440910174,4.0,149.21,149.03,205.0766675]
[1641440910374,10.69859664,149.23,149.09,6.69725078]
[1641440910574,4.0,149.25,149.14,6.69500887]
[1641440910771,27.66479,149.27,149.18,6.69344043]
[1641440910972,27.66479,149.27,149.18,11.24644043]
[1641440911371,27.66479,149.27,149.18,15.24644043]
[1641440911571,27.66479,149.27,149.19,31.66479]
[1641440911773,27.66479,149.27,149.21,4.0]
[1641440911974,27.66479,149.27,149.19,27.66479]
[1641440912173,27.66479,149.27,149.19,31.66479]
[1641440912372,27.66479,149.27,149.21,4.0]
[1641440912575,27.66479,149.27,149.22,4.0]
[1641440912771,27.66479,149.27,149.21,6.69187272]
[1641440912972,27.66479,149.3,149.23,4.0]
[1641440913174,27.66479,149.3,149.24,4.0]
[1641440913473,27.66479,149.3,149.27,4.0]
[1641440913776,27.66479,149.33,149.25,4.0]
[1641440913975,27.66479,149.33,149.23,31.66479]
[1641440914172,4.49250798,149.32,149.28,13.47752394]
[1641440915474,4.49250798,149.32,149.29,13.47752394]
[1641440916378,8.49250798,149.32,149.28,13.47752394]
[1641440916876,4.49250798,149.32,149.28,13.47752394]
[1641440917580,4.49250798,149.3,149.29,4.73153038]
[1641440917978,7.98e-06,149.3,149.29,8.73153038]
[1641440918181,27.66479,149.33,149.29,8.73153038]
[1641440918383,63.4448,149.44,149.32,4.0]
[1641440918384,35.94006384,149.41,149.32,4.0]
[1641440918582,35.94006384,149.41,149.34,4.0]
[1641440919080,35.94006384,149.41,149.31,4.0]
[1641440919482,35.94006384,149.41,149.3,4.0]
[1641440919681,63.60485384,149.41,149.31,27.66479]
[1641440919881,27.66479,149.41,149.36,14.18514039]
[1641440920283,31.66479,149.41,149.36,14.18514039]
[1641440920782,6.69209663,149.38,149.36,14.18514039]
[1641440921186,38.35554338,149.41,149.36,14.18514039]
[1641440921389,48.29899163,149.4,149.31,27.66479]
[1641440922184,52.29899163,149.4,149.31,27.66479]
[1641440922384,6.69232056,149.37,149.31,27.66479]
[1641440923084,4.0,149.38,149.31,27.66479]
[1641440923284,6.69299244,149.36,149.29,14.18514039]
[1641440923496,4.0,149.37,149.29,14.18514039]
[1641440923685,6.69433659,149.33,149.29,14.18514039]
[1641440923885,6.69433659,149.33,149.27,27.66479]
[1641440924084,35.94006384,149.36,149.27,27.66479]
[1641440925092,12.35892779,149.36,149.27,27.66479]
[1641440925985,12.35892779,149.36,149.27,41.84993039]
[1641440926387,12.35892779,149.36,149.33,4.0]
[1641440926586,12.35892779,149.36,149.31,4.0]
[1641440926787,12.35892779,149.36,149.32,4.0]
[1641440926987,12.35892779,149.36,149.33,4.0]
[1641440927189,17.4576798,149.39,149.33,4.0]
[1641440927388,35.94006384,149.42,149.34,4.0]
[1641440927589,35.94006384,149.42,149.32,18.18514039]
[1641440927791,35.94006384,149.42,149.38,27.66479]
[1641440928389,35.94006384,149.44,149.38,27.66479]
[1641440928890,35.94006384,149.44,149.4,4.0]
[1641440929091,21.50616384,149.44,149.4,4.0]
[1641440929289,21.50616384,149.44,149.38,27.66479]
[1641440929490,21.50616384,149.47,149.38,27.66479]
[1641440929694,21.50616384,149.47,149.43,27.66479]
[1641440930792,25.50616384,149.47,149.43,20.10048658]
[1641440930992,32.19400868,149.47,149.38,27.66479]
[1641440931193,4.0,149.46,149.38,27.66479]
[1641440931393,32.19400868,149.47,149.38,27.66479]
[1641440931792,55.85879868,149.47,149.38,27.66479]
[1641440932292,28.19400868,149.47,149.38,27.66479]
[1641440932497,6.68784484,149.47,149.38,27.66479]
[1641440932696,53.91009576,149.49,149.38,27.66479]
[1641440932895,53.91009576,149.49,149.4,4.0]
[1641440933094,53.91009576,149.49,149.4,6.68359845]
[1641440933294,53.91009576,149.49,149.38,27.66479]